bitfinex-derivatives/quotes_ETHF0:USTF0_20250905
["timestamp","ask_amount","ask_price","bid_price","bid_amount"]
[1757100511935,1.3914,4332.3,4332.2,0.3711]
[1757100513037,1.3914,4332.3,4332.2,1.3494]
[1757100513531,1.0043,4332.3,4332.2,1.3494]
[1757100513931,1.3914,4332.3,4332.2,1.3494]
[1757100515842,1.0043,4333.4,4332.3,1.02085]
[1757100516144,1.60738764,4333.3,4333.2,1.3494]
[1757100516342,1.60738764,4333.3,4333.2,1.5964]
[1757100516648,1.0043,4333.3,4333.2,1.5964]
[1757100517038,1.3914,4333.3,4333.2,1.5964]
[1757100517640,1.3914,4333.3,4333.2,0.6181]
[1757100520745,0.7847,4333.3,4332.8,3.2078]
[1757100520938,1.3914,4332.4,4332.3,4.5572]
[1757100521141,1.3914,4332.4,4332.3,4.8032]
[1757100521546,1.0043,4332.4,4332.3,4.8032]
[1757100523653,1.0043,4332.4,4332.3,3.2078]
[1757100523852,1.6249,4332.0,4331.9,0.3711]
[1757100524149,0.6067,4331.9,4331.8,3.2078]
[1757100524350,1.3914,4331.9,4331.8,3.4538]
[1757100524550,1.3914,4331.9,4331.8,0.6171]
[1757100524951,0.2335,4331.5,4331.2,3.2078]
[1757100525148,1.0043,4331.5,4331.4,1.3494]
[1757100526767,1.0043,4331.5,4331.4,1.5954]
[1757100527150,1.6249,4331.5,4331.4,1.5954]
[1757100528451,1.3914,4331.5,4331.4,1.5954]
[1757100530154,0.6067,4331.5,4331.4,1.5954]
[1757100530452,0.3783,4331.6,4331.5,1.3463]
[1757100530654,0.9234,4331.6,4331.5,1.3463]
[1757100531249,0.2335,4332.0,4331.5,1.3463]
[1757100531462,0.5451,4331.9,4331.8,1.3463]
[1757100531653,0.9234,4331.9,4331.8,1.5923]
[1757100532251,0.5451,4332.4,4331.9,0.5741]
[1757100532455,1.3009,4332.4,4332.3,1.3463]
[1757100532649,1.3009,4332.4,4332.3,1.5923]
[1757100533053,1.3009,4332.4,4332.3,1.0182]
[1757100534158,1.3009,4332.4,4331.7,3.7819]
[1757100534460,1.3009,4331.9,4331.8,1.5923]
[1757100537564,1.3009,4331.9,4331.8,1.3463]
[1757100537756,1.3009,4331.9,4331.8,1.5923]
[1757100540158,1.3009,4331.9,4331.8,0.3736]
[1757100540465,1.3009,4331.9,4331.8,0.6196]
[1757100540665,1.3009,4331.9,4331.8,1.5923]
[1757100541365,1.3009,4331.9,4331.8,1.0182]
[1757100541567,1.3009,4331.9,4331.8,1.5923]
[1757100546464,0.5451,4331.9,4331.8,1.5923]
[1757100546659,0.2335,4332.5,4332.3,1.3463]
[1757100546660,1.3009,4332.4,4332.3,1.3463]
[1757100546863,1.3009,4332.4,4332.3,1.5923]
[1757100548867,1.3009,4332.4,4332.3,0.246]
[1757100549870,0.2348,4332.0,4331.7,0.5741]
[1757100550072,1.3009,4331.8,4331.7,0.3736]
[1757100550370,1.3009,4331.8,4331.7,0.6196]
[1757100551262,1.3009,4331.8,4331.7,0.3736]
[1757100551464,1.3009,4331.8,4331.7,0.6196]
[1757100552274,1.3009,4331.8,4331.7,1.5923]
[1757100553770,0.9234,4331.8,4331.7,1.5923]
[1757100555672,0.9234,4331.9,4331.8,1.3463]
[1757100556170,1.3009,4331.9,4331.8,1.3463]
[1757100556373,1.3009,4331.9,4331.8,0.7722]
[1757100556573,1.3009,4331.9,4331.8,1.0172]
[1757100556875,1.3009,4331.9,4331.8,1.5913]
[1757100557970,1.3009,4331.9,4331.8,0.7722]
[1757100558277,1.3128,4331.9,4331.8,0.245]
[1757100559865,0.557,4331.9,4331.8,1.5795]
[1757100560385,1.3204,4331.9,4331.8,1.5795]
[1757100560673,1.3204,4331.9,4331.8,1.3345]
[1757100560877,1.3204,4331.9,4331.8,1.5795]
[1757100561279,1.3204,4331.9,4331.8,0.3615]
[1757100561578,1.3204,4331.9,4331.8,0.6065]
[1757100563376,1.3204,4331.9,4331.8,1.5795]
[1757100564577,1.3204,4331.9,4331.8,0.3615]
[1757100565080,0.7634,4331.7,4331.6,3.2078]
[1757100565278,1.3204,4331.7,4331.6,3.4528]
[1757100565474,1.3204,4331.7,4331.6,3.8143]
[1757100566481,1.3204,4331.7,4331.6,4.4042]
[1757100566670,1.3204,4331.7,4331.6,4.7873]
[1757100566976,1.3204,4331.7,4331.6,4.5423]
[1757100567279,1.3204,4331.7,4331.6,4.7873]
[1757100568777,1.3204,4331.7,4331.6,3.2078]
[1757100568983,1.3204,4331.7,4331.6,3.4528]
[1757100569179,1.3204,4331.7,4331.6,0.245]
[1757100570283,1.92736331,4331.7,4331.6,0.245]
[1757100570469,0.7634,4331.2,4330.6,3.2078]
[1757100570670,0.7634,4330.8,4330.7,0.245]
[1757100570882,1.3204,4330.8,4330.7,0.6065]
[1757100571084,1.3204,4330.8,4330.7,0.9896]
[1757100571280,0.557,4330.7,4330.6,3.2078]
[1757100571485,1.3204,4330.7,4330.6,3.4528]
[1757100572281,0.7634,4330.2,4330.1,3.5693]
[1757100572477,1.3204,4330.2,4330.1,3.2078]
[1757100572673,1.3204,4330.2,4330.1,3.4528]
[1757100572979,1.3204,4330.2,4330.1,0.245]
[1757100573276,4.7634,4330.2,4329.5,3.2078]
[1757100573477,1.3204,4329.1,4329.0,3.9524]
[1757100573781,0.2214,4329.5,4329.0,5.0042]
[1757100574079,3.2078,4329.9,4329.0,3.6697]
[1757100574284,1.3204,4329.8,4329.7,1.3345]
[1757100574484,1.3204,4329.8,4329.7,1.5795]
[1757100576188,1.3204,4329.8,4329.7,0.9896]
[1757100576487,1.3204,4329.8,4329.7,0.245]
[1757100576791,1.3204,4329.8,4329.1,0.5899]
[1757100576991,1.3204,4329.8,4329.2,0.245]
[1757100577980,1.3204,4329.8,4329.3,0.87053832]
[1757100578278,1.5418,4329.5,4329.4,0.64213832]
[1757100578679,1.5418,4329.5,4329.4,1.02523832]
[1757100578878,1.5418,4329.5,4329.4,1.02511376]
[1757100579083,1.5418,4329.5,4329.4,1.61501376]
[1757100579987,1.5418,4329.5,4329.4,1.02511376]
[1757100580188,1.5418,4329.5,4329.4,1.27011376]
[1757100580589,1.5418,4329.5,4329.4,1.86001376]
[1757100581885,0.7784,4330.0,4329.9,1.3345]
[1757100582094,0.557,4330.0,4329.9,1.5795]
[1757100582483,0.557,4330.0,4329.9,1.85961434]
[1757100582789,0.9315,4330.0,4329.9,1.85961434]
[1757100582989,0.9315,4330.0,4329.9,1.5795]
[1757100583291,1.5418,4330.0,4329.9,0.9896]
[1757100583591,1.5418,4330.0,4329.9,0.6065]
[1757100585184,1.5418,4330.0,4329.9,0.245]
[1757100586288,1.5418,4330.0,4329.9,0.6065]
[1757100587388,1.5418,4330.0,4329.9,1.5795]
[1757100590589,3.2078,4330.9,4329.9,1.5795]
[1757100590788,0.5782,4330.5,4330.4,1.2865]
[1757100591090,0.5782,4330.5,4330.4,1.5315]
[1757100591290,1.5208,4330.5,4330.4,1.5315]
[1757100592089,1.5208,4330.5,4330.4,0.245]
[1757100592494,0.5768,4330.4,4329.8,3.7522]
[1757100592696,1.5211,4330.0,4329.9,0.89824263]
[1757100593498,1.5211,4330.0,4329.9,1.81194263]
[1757100593693,1.5211,4330.0,4329.9,1.26754263]
[1757100594590,1.5211,4330.0,4329.9,1.81194263]
[1757100595993,0.5768,4330.0,4329.9,1.81194263]
[1757100596396,0.9336,4330.0,4329.9,1.81194263]
[1757100598195,1.5211,4330.0,4329.9,1.81194263]
[1757100600192,1.5211,4330.0,4329.9,0.52544263]
[1757100600392,0.5768,4330.0,4329.9,1.81194263]
[1757100600592,0.5782,4330.5,4330.4,0.3728]
[1757100600799,0.944,4330.5,4330.4,0.89724263]
[1757100601304,1.5208,4330.5,4330.4,0.89724263]
[1757100602094,1.5208,4330.5,4330.4,0.52444263]
[1757100604101,1.5208,4330.5,4330.4,0.89724263]
[1757100604301,1.5208,4330.5,4330.4,1.26654263]
[1757100605098,1.5208,4330.5,4330.4,0.28044263]
[1757100605302,1.5208,4330.5,4330.4,0.52444263]
[1757100609911,1.5208,4330.5,4330.4,0.52592933]
[1757100610212,1.57491114,4330.5,4330.4,0.52592933]
[1757100610411,1.57491114,4330.5,4330.4,1.81242933]
[1757100611109,1.35351114,4330.5,4330.4,1.81242933]
[1757100611310,0.98771114,4330.5,4330.4,1.81242933]
[1757100611709,1.57521114,4330.5,4330.4,0.89872933]
[1757100613408,1.57521114,4330.5,4330.4,0.89887908]
[1757100613913,1.57521114,4330.5,4330.4,1.26817908]
[1757100614102,1.57521114,4330.5,4330.4,1.81257908]
[1757100615716,0.98771114,4330.5,4330.4,1.81257908]
[1757100615908,0.05411114,4330.5,4330.4,1.81257908]
[1757100616211,0.05411114,4330.5,4330.4,6.04349908]
[1757100616915,1.155,4331.5,4331.4,1.2865]
[1757100617111,0.9336,4331.5,4331.4,1.81257908]
[1757100617505,1.5211,4331.5,4331.4,1.81257908]
[1757100618309,1.5211,4331.5,4331.4,0.89887908]
[1757100618515,1.5211,4331.5,4331.4,0.28207908]
[1757100618717,1.5211,4331.5,4331.4,0.52607908]
[1757100619614,1.5211,4331.5,4331.4,0.90707908]
[1757100621017,1.5211,4331.5,4331.4,0.52607908]
[1757100623418,0.7985,4331.5,4331.4,1.80687908]
[1757100623613,1.5347,4331.5,4331.4,1.80687908]
[1757100624018,1.5347,4331.5,4331.4,1.26817908]
[1757100625523,1.5347,4331.5,4331.4,0.90707908]
[1757100625824,1.5347,4331.5,4331.4,0.52507908]
[1757100628421,1.5347,4331.5,4331.4,0.90607908]
[1757100629328,1.5347,4331.5,4331.4,0.52507908]
[1757100631132,0.7362,4330.6,4330.5,3.2078]
[1757100631432,1.2705,4330.6,4330.5,3.4508]
[1757100632235,1.2705,4330.6,4330.5,0.243]
[1757100632737,1.2705,4330.6,4330.5,1.5238]
[1757100639738,1.2705,4330.2,4330.1,1.2808]
[1757100639940,1.2705,4330.2,4330.1,1.5238]
[1757100640832,0.8881,4330.2,4330.1,1.2808]
[1757100641037,1.2705,4330.2,4330.1,1.5238]
[1757100642840,1.2705,4330.2,4330.1,1.2808]
[1757100643042,1.2705,4330.2,4330.1,0.243]
[1757100643241,1.2705,4330.2,4329.8,0.5387]
[1757100643438,0.2074,4330.5,4329.5,0.1534]
[1757100643439,1.4779,4330.0,4329.9,0.624]
[1757100643645,1.4779,4330.0,4329.9,1.1627]
[1757100643844,1.2705,4330.0,4329.9,1.5238]
[1757100645243,1.4779,4330.0,4329.9,1.5238]
[1757100646941,1.2705,4330.0,4329.9,1.5238]
[1757100647140,1.2705,4330.0,4329.9,4.7316]
[1757100648449,0.8881,4330.0,4329.9,4.7316]
[1757100650346,1.2513,4330.0,4329.9,4.7316]
[1757100651044,1.4519,4330.0,4329.9,4.7316]
[1757100651547,1.2513,4330.0,4329.9,4.7316]
[1757100651946,1.2513,4330.0,4329.9,1.5238]
[1757100653351,1.2513,4330.0,4329.9,4.7316]
[1757100653941,1.4519,4330.0,4329.9,1.5238]
[1757100655449,1.2513,4330.0,4329.9,1.5238]
[1757100660454,1.4519,4330.0,4329.9,0.381]
[1757100660658,1.4519,4330.0,4329.9,0.624]
[1757100661049,1.4519,4330.0,4329.9,1.1456]
[1757100661848,1.14855,4330.0,4329.5,0.5216]
[1757100662152,1.14855,4330.0,4328.7,32.05226839]
[1757100662153,0.7197,4328.8,4328.7,31.864]
[1757100662353,1.2544,4328.8,4328.7,32.107]
[1757100663153,1.2544,4328.8,4328.7,31.864]
[1757100663354,1.2544,4328.8,4328.7,32.106]
[1757100663754,1.2544,4328.8,4328.7,32.6276]
[1757100664260,1.2544,4328.8,4328.7,32.3856]
[1757100664462,1.2544,4328.8,4328.7,32.106]
[1757100664656,1.2544,4328.8,4328.7,0.242]
[1757100665155,1.2544,4328.8,4328.7,0.5869]
[1757100665551,1.2544,4328.8,4328.6,3.2078]
[1757100665759,0.2006,4328.5,4328.2,0.5216]
[1757100665956,1.2544,4328.3,4328.2,0.8665]
[1757100666160,0.5347,4328.2,4327.6,3.2078]
[1757100666360,0.43163,4328.5,4327.2,0.5216]
[1757100666361,1.2544,4327.7,4327.2,0.5216]
[1757100666560,0.7197,4327.4,4327.3,1.1085]
[1757100666762,1.2544,4327.4,4327.3,1.4756]
[1757100667254,1.2544,4327.4,4327.0,3.2078]
[1757100667461,0.2006,4326.5,4326.4,3.7294]
[1757100667659,1.455,4326.5,4326.4,4.6834]
[1757100667964,1.2544,4326.5,4326.4,4.6834]
[1757100668159,1.455,4326.5,4326.4,4.6834]
[1757100668466,1.2544,4326.5,4326.4,1.4756]
[1757100668658,1.455,4326.5,4326.4,0.5216]
[1757100668859,1.455,4326.5,4326.4,1.1085]
[1757100669252,1.455,4326.5,4326.4,0.242]
[1757100669457,1.455,4326.5,4326.4,0.5869]
[1757100670064,1.455,4326.5,4326.4,0.242]
[1757100670855,1.455,4326.5,4326.4,1.1085]
[1757100671162,1.455,4326.5,4326.4,0.5869]
[1757100671763,1.455,4326.5,4326.4,0.242]
[1757100672663,1.455,4326.5,4326.4,0.5869]
[1757100672865,1.455,4326.5,4326.4,1.1085]
[1757100673564,0.8912,4326.5,4326.4,1.4756]
[1757100675160,1.455,4326.5,4326.4,0.242]
[1757100675365,1.455,4326.5,4326.4,1.4756]
[1757100676159,1.455,4326.5,4326.4,0.5869]
[1757100676660,1.455,4326.5,4326.4,1.1085]
[1757100676863,1.2544,4326.5,4326.4,1.4756]
[1757100681165,1.4724,4326.5,4326.4,1.4756]
[1757100681368,1.4724,4326.5,4326.4,0.5869]
[1757100681566,1.2544,4326.5,4326.4,1.4809]
[1757100682063,1.4724,4326.5,4326.4,1.4809]
[1757100682267,1.4724,4326.5,4325.8,3.2078]
[1757100682268,0.218,4326.0,4325.8,3.2078]
[1757100682462,1.2034,4325.8,4325.7,0.242]
[1757100683363,1.2034,4325.8,4325.0,0.201]
[1757100683364,1.2034,4325.1,4325.0,1.2624]
[1757100683967,0.218,4325.0,4324.3,3.2078]
[1757100684269,0.218,4325.0,4324.9,1.2624]
[1757100684270,0.6984,4325.0,4324.9,1.2624]
[1757100684458,0.9164,4325.0,4324.6,0.7951]
[1757100684665,1.2034,4324.7,4324.6,1.5044]
[1757100685069,0.8453,4324.7,4324.6,1.5044]
[1757100685771,1.2034,4324.7,4324.6,1.5044]
[1757100686674,1.2034,4324.7,4324.6,0.3684]
[1757100686871,1.2034,4324.7,4324.6,0.6104]
[1757100687374,1.2034,4324.7,4324.6,0.242]
[1757100689169,0.6984,4324.3,4324.2,1.2624]
[1757100689376,1.2034,4324.3,4324.2,1.5044]
[1757100689667,0.3403,4324.3,4324.2,1.5044]
[1757100691973,0.218,4325.0,4324.5,0.9186]
[1757100692168,1.80687524,4324.9,4324.6,0.242]
[1757100692472,1.2034,4324.7,4324.6,1.5044]
[1757100693276,1.80763445,4324.7,4324.6,1.5044]
[1757100695166,0.60423445,4324.7,4324.3,3.2078]
[1757100695374,1.2034,4324.7,4324.4,0.5531]
[1757100695586,1.2034,4324.7,4323.4,31.899]
[1757100695587,0.218,4324.0,4323.7,0.5531]
[1757100695872,0.505,4323.8,4323.7,0.7093]
[1757100696072,0.60514471,4323.9,4323.5,0.2093]
[1757100696073,0.8453,4323.9,4323.8,1.2624]
[1757100696274,0.8453,4323.9,4323.6,3.2078]
[1757100696275,1.2034,4323.7,4323.6,0.894]
[1757100696575,1.2034,4323.7,4322.5,0.2093]
[1757100696576,1.2034,4323.4,4323.3,0.9215]
[1757100696879,1.80882998,4323.4,4322.6,3.2078]
[1757100697082,0.218,4323.5,4322.8,1.33930994]
[1757100697083,1.2034,4322.9,4322.8,1.33930994]
[1757100697272,1.80882998,4322.9,4322.8,1.68020994]
[1757100697967,1.80882998,4322.9,4322.8,0.41780994]
[1757100698171,5.80882998,4322.9,4322.8,0.17580994]
[1757100698371,1.80882998,4322.9,4322.8,1.43820994]
[1757100700875,0.60542998,4322.9,4322.8,1.43820994]
[1757100701284,0.505,4323.3,4322.8,0.88510994]
[1757100701583,0.60431194,4323.2,4323.1,1.2624]
[1757100701782,0.60431194,4323.2,4323.1,1.5044]
[1757100701982,0.94461194,4323.2,4323.1,1.5044]
[1757100702687,1.44961194,4323.2,4323.1,1.5044]
[1757100702879,1.80771194,4323.2,4323.1,1.5044]
[1757100703385,1.80771194,4323.2,4323.1,0.242]
[1757100703885,1.80771194,4323.2,4323.1,0.6104]
[1757100704086,1.80771194,4323.2,4323.1,1.5044]
[1757100714790,1.80771194,4323.2,4322.8,0.17580994]
[1757100714791,1.80771194,4323.2,4323.0,0.242]
[1757100714993,1.79421194,4323.1,4323.0,0.5862]
[1757100715691,1.79421194,4323.1,4323.0,1.0838]
[1757100716586,1.79421194,4323.1,4323.0,1.4301]
[1757100719495,1.79421194,4323.1,4323.0,0.3442]
[1757100720994,1.79421194,4323.1,4323.0,1.1881]
[1757100722891,1.79421194,4323.1,4323.0,1.3963]
[1757100722892,0.93161194,4323.1,4323.0,1.3963]
[1757100723090,0.60431194,4323.1,4323.0,1.3963]
[1757100723389,0.8603,4323.2,4323.1,1.1881]
[1757100723589,1.46797787,4323.2,4323.1,4.3959]
[1757100723994,0.93497787,4323.2,4323.1,4.3959]
[1757100724183,0.3273,4323.2,4323.1,4.3959]
[1757100724493,3.2078,4324.2,4324.0,0.8987]
[1757100724693,0.533,4324.4,4324.1,1.4291]
[1757100724894,0.93527208,4324.3,4324.2,1.1881]
[1757100725994,0.60797208,4324.3,4324.2,1.1881]
[1757100726392,0.533,4324.7,4324.2,1.1881]
[1757100726593,0.218,4325.0,4324.3,0.4976]
[1757100726794,1.79781624,4324.9,4324.8,0.3442]
[1757100726995,1.79781624,4324.9,4324.8,0.5852]
[1757100727888,1.79781624,4324.9,4324.0,3.416]
[1757100727889,5.26481624,4324.9,4324.0,3.2078]
[1757100728090,0.3273,4324.1,4324.0,4.3959]
[1757100728390,0.3273,4324.2,4324.1,0.3463]
[1757100728588,1.1899,4324.2,4324.1,1.1881]
[1757100734592,0.533,4324.1,4323.7,0.4976]
[1757100734793,1.1899,4323.9,4323.8,0.5852]
[1757100735092,1.1899,4323.9,4323.8,1.0828]
[1757100735288,1.1899,4323.9,4323.8,1.4291]
[1757100735898,1.1899,4324.5,4324.4,1.1881]
[1757100736098,1.1899,4324.5,4324.4,1.4291]
[1757100736599,1.3936,4324.5,4324.4,0.241]
[1757100738697,1.3936,4324.5,4323.7,0.4976]
[1757100738698,0.6763,4323.6,4323.5,3.2078]
[1757100738898,1.1647,4323.6,4323.5,3.4488]
[1757100739203,1.1647,4323.6,4323.5,0.571]
[1757100739889,1.1647,4323.6,4323.5,0.241]
[1757100740092,0.8748,4323.0,4322.9,3.5378]
[1757100740395,1.1647,4323.0,4322.9,4.6078]
[1757100740594,0.3379,4323.0,4322.9,4.6078]
[1757100740904,0.8263,4323.0,4322.9,4.6078]
[1757100741098,0.8263,4323.0,4322.9,3.4488]
[1757100741099,1.3632,4323.0,4322.9,3.4488]
[1757100742503,1.3632,4323.0,4322.8,0.17580994]
[1757100742701,0.4884,4321.9,4321.7,3.2078]
[1757100742894,0.6763,4321.8,4321.7,0.33]
[1757100743095,1.1647,4321.8,4321.7,0.33]
[1757100744008,1.1647,4321.8,4321.7,0.241]
[1757100744203,0.4884,4321.7,4321.2,3.2078]
[1757100744401,0.8263,4321.3,4321.2,3.8705]
[1757100744708,0.4884,4321.9,4321.2,4.1115]
[1757100744895,1.1647,4321.9,4321.8,0.33]
[1757100745099,1.1647,4321.9,4321.4,0.241]
[1757100745301,1.1647,4321.9,4321.2,3.2078]
[1757100745302,1.1647,4321.3,4321.2,3.2078]
[1757100745602,1.1647,4321.3,4321.2,0.33]
[1757100747302,4.3725,4321.3,4321.0,0.241]
[1757100747912,4.3725,4321.3,4320.3,0.241]
[1757100748497,0.6763,4320.4,4320.0,3.2078]
[1757100748698,1.1647,4320.1,4320.0,3.2078]
[1757100749814,1.1647,4320.1,4320.0,3.5378]
[1757100750007,0.1985,4320.5,4320.0,4.0787]
[1757100750206,1.1647,4320.4,4320.3,1.159]
[1757100750513,0.6763,4320.4,4320.1,0.7373]
[1757100750707,0.1985,4321.0,4320.4,0.4963]
[1757100750908,1.1647,4321.0,4320.9,1.159]
[1757100751714,0.3379,4321.0,4320.9,1.159]
[1757100752214,0.8263,4321.3,4321.2,1.159]
[1757100753601,0.3379,4321.3,4321.2,1.159]
[1757100754211,0.4884,4321.7,4321.2,1.159]
[1757100754407,4.3725,4321.8,4321.7,0.33]
[1757100755410,0.6869,4321.5,4321.4,0.33]
[1757100755619,0.6763,4321.4,4321.0,0.241]
[1757100755806,1.1647,4321.1,4321.0,0.571]
[1757100756104,0.4884,4320.6,4320.4,0.241]
[1757100756305,1.3632,4320.5,4320.4,0.571]
[1757100756609,1.3632,4320.5,4320.2,0.241]
[1757100757011,0.8748,4320.5,4320.2,0.241]
[1757100757210,0.8748,4320.5,4320.4,0.33]
[1757100757809,1.3632,4320.5,4320.4,0.33]
[1757100758207,1.3632,4320.5,4320.4,0.6627]
[1757100758407,1.1647,4320.5,4320.4,1.159]
[1757100758608,1.3632,4320.5,4320.2,0.241]
[1757100759111,0.6763,4320.2,4320.1,3.2078]
[1757100759315,1.1647,4320.2,4320.0,0.241]
[1757100759910,1.1647,4320.1,4320.0,0.571]
[1757100760704,3.2078,4320.3,4319.0,3.416]
[1757100760705,0.6763,4319.7,4319.0,3.416]
[1757100761013,3.6962,4320.3,4319.7,0.4963]
[1757100761319,4.3725,4320.3,4320.2,0.33]
[1757100761503,0.4884,4320.2,4319.9,0.4963]
[1757100761707,1.1647,4320.0,4319.9,1.159]
[1757100762509,0.4884,4320.7,4320.2,0.6627]
[1757100762712,0.4884,4320.7,4320.6,1.159]
[1757100762713,0.8263,4320.7,4320.6,1.159]
[1757100763124,1.1647,4320.7,4320.6,1.159]
[1757100763326,1.1647,4320.7,4320.3,0.241]
[1757100763724,1.1647,4320.4,4320.3,1.4]
[1757100764026,0.3379,4320.4,4320.3,1.4]
[1757100764522,0.8263,4320.4,4320.3,1.4]
[1757100764729,3.8841,4320.9,4320.8,0.6627]
[1757100764915,3.8841,4320.9,4320.8,1.159]
[1757100765226,3.5457,4320.9,4320.8,1.159]
[1757100765414,0.4884,4321.3,4320.8,0.9037]
[1757100765616,3.4063,4321.5,4320.8,0.9037]
[1757100765617,0.3379,4321.4,4321.3,0.33]
[1757100765823,1.1647,4321.4,4321.3,0.33]
[1757100766117,0.8263,4320.7,4320.6,1.159]
[1757100766316,0.4884,4321.0,4320.6,1.4]
[1757100766522,1.1647,4321.0,4320.9,0.33]
[1757100766724,1.1647,4320.9,4320.8,0.33]
[1757100767027,1.1647,4320.9,4320.8,1.159]
[1757100767819,3.2078,4321.5,4321.4,0.6627]
[1757100768027,3.2078,4321.5,4321.4,1.159]
[1757100768222,4.571,4321.5,4321.2,0.241]
[1757100768624,0.187,4321.0,4320.9,0.241]
[1757100768828,1.3595,4321.0,4320.9,0.241]
[1757100771129,1.3595,4321.0,4320.2,0.5085]
[1757100771333,0.3435,4320.3,4320.2,1.1772]
[1757100771534,0.3435,4320.3,4320.2,1.4182]
[1757100772938,1.1725,4320.3,4320.2,1.4182]
[1757100773938,0.3435,4320.4,4320.3,1.1772]
[1757100774236,1.1725,4320.9,4320.8,0.6687]
[1757100774435,1.78907239,4320.9,4320.8,0.6687]
[1757100775033,1.78907239,4320.9,4320.3,0.5085]
[1757100775233,1.27767239,4320.8,4320.7,0.8507]
[1757100775540,1.27767239,4320.8,4320.7,1.1772]
[1757100775740,1.78907239,4320.8,4320.7,1.1772]
[1757100776031,0.61657239,4320.8,4320.7,1.1772]
[1757100776236,0.8549,4321.3,4321.2,0.3265]
[1757100776426,1.78921958,4321.3,4321.2,1.1772]
[1757100777335,1.78921958,4321.3,4321.2,0.3265]
[1757100777637,4.99701958,4321.3,4320.9,0.7495]
[1757100777837,0.6611,4321.0,4320.9,1.4182]
[1757100778035,1.78921958,4321.0,4320.9,1.4182]
[1757100779840,1.97621958,4321.0,4320.9,1.4182]
[1757100780239,0.61671958,4321.0,4320.9,1.4182]
[1757100780436,0.8549,4321.5,4321.4,0.6687]
[1757100780743,0.8549,4321.5,4321.4,1.1772]
[1757100780744,1.9762093,4321.5,4321.4,1.1772]
[1757100781244,1.9762093,4321.5,4321.4,0.3265]
[1757100781445,1.9762093,4321.5,4321.4,1.1772]
[1757100781742,1.7892093,4321.5,4321.4,1.1772]
[1757100782841,1.7892093,4321.5,4321.4,0.3265]
[1757100783040,1.1725,4321.0,4320.9,1.4182]
[1757100783433,1.1725,4321.0,4320.9,0.3265]
[1757100783634,0.5114,4320.9,4320.2,0.24]
[1757100783838,0.5114,4320.9,4320.3,0.5085]
[1757100784038,0.5114,4320.3,4320.1,0.24]
[1757100784242,1.1725,4320.2,4320.1,0.9087]
[1757100784444,1.1725,4320.2,4320.1,1.4172]
[1757100785347,1.1725,4320.2,4320.1,0.9087]
[1757100785533,1.1725,4320.2,4320.1,1.4172]
[1757100786743,1.1725,4320.2,4320.1,0.9087]
[1757100787343,1.1725,4320.2,4320.1,0.5665]
[1757100788049,1.1725,4320.2,4320.1,1.075]
[1757100789045,1.1725,4320.2,4320.1,1.4172]
[1757100789240,1.1725,4320.2,4320.0,3.2078]
[1757100789548,0.3435,4319.6,4319.5,1.1772]
[1757100789744,0.3435,4319.7,4319.6,0.5085]
[1757100789950,0.3435,4319.7,4319.6,1.1772]
[1757100790151,0.8549,4319.7,4319.6,1.1772]
[1757100790348,1.1725,4319.7,4319.6,1.1772]
[1757100790551,1.1725,4319.7,4319.6,0.835]
[1757100790751,1.1725,4319.7,4319.6,1.1772]
[1757100793852,0.5114,4320.4,4319.7,0.5085]
[1757100794049,0.3435,4320.4,4320.3,1.1772]
[1757100794249,0.187,4321.0,4320.3,0.6687]
[1757100794444,0.3435,4320.4,4320.3,0.6687]
[1757100794648,0.8549,4320.4,4320.3,0.6687]
[1757100794849,0.3435,4320.4,4320.3,1.1772]
[1757100795050,0.5114,4320.7,4320.4,0.5085]
[1757100795248,0.8549,4320.7,4320.6,1.1772]
[1757100795552,1.1725,4320.7,4320.6,1.1772]
[1757100796050,1.1725,4320.7,4320.2,0.24]
[1757100796352,1.1725,4320.3,4320.2,1.4172]
[1757100799649,1.157,4320.3,4320.2,0.24]
[1757100799951,0.1876,4319.5,4319.4,0.7929]
[1757100800152,1.1343,4319.5,4319.4,1.3784]
[1757100800858,0.7956,4320.0,4319.9,1.1384]
[1757100801157,1.1343,4320.0,4319.9,1.3784]
[1757100803451,1.3219,4320.0,4319.9,1.3784]
[1757100804050,1.3219,4320.0,4319.9,0.5578]
[1757100804364,0.6595,4319.8,4319.7,0.24]
[1757100804658,1.1343,4319.8,4319.7,0.24]
[1757100805056,0.3208,4319.8,4319.7,1.3784]
[1757100805250,0.4748,4320.4,4319.8,0.4751]
[1757100805450,0.3208,4319.9,4319.8,1.1384]
[1757100805660,0.7956,4319.9,4319.8,1.1384]
[1757100806360,1.1343,4319.9,4319.8,1.1384]
[1757100807360,1.1343,4319.9,4319.8,0.3178]
[1757100809760,1.1343,4319.9,4319.8,1.1384]
[1757100810351,0.4748,4319.3,4319.0,0.4751]
[1757100810557,1.3219,4319.0,4318.9,3.5256]
[1757100811065,1.3219,4319.0,4318.9,3.2078]
[1757100811363,4.5297,4319.0,4318.3,3.2078]
[1757100811555,0.6595,4318.4,4318.3,3.8711]
[1757100811753,1.1343,4318.4,4318.3,4.3462]
[1757100812257,1.1343,4318.9,4318.8,1.1384]
[1757100812754,1.1343,4318.9,4318.8,0.3178]
[1757100812957,1.1343,4318.4,4318.3,3.5256]
[1757100813157,1.1343,4318.4,4318.3,3.2078]
[1757100813362,0.7956,4318.3,4318.2,0.3178]
[1757100813555,0.6595,4318.3,4317.8,3.2078]
[1757100813857,1.3219,4318.0,4317.9,0.3178]